[Event "Titled Tuesday Blitz January 10 Early 2023"]
[White "Vasques, Antonio Pedro Freixial"]
[Black "Mkrtchian, Lilit"]
[WhiteFideId "1908332"]
[BlackFideId "13300601"]
[WhiteElo "2214"]
[BlackElo "2389"]
[Result "0-1"]
[Round "02"]
[TimeControl "180+2"]
[Date "2023.01.10"]
[WhiteClock "0:01:39"]
[BlackClock "0:00:04"]

1. e4 {[%clk 0:03:00]}  e6 {[%clk 0:02:59]} 2. d4 {[%clk 0:03:00]}  d5 {[%clk 0:02:59]} 3. Nc3 {[%clk 0:02:59]}  Nf6 {[%clk 0:02:58]} 4. Bg5 {[%clk 0:02:59]}  dxe4 {[%clk 0:02:56]} 5. Nxe4 {[%clk 0:02:56]}  Be7 {[%clk 0:02:56]} 6. Bxf6 {[%clk 0:02:57]}  gxf6 {[%clk 0:02:56]} 7. Nf3 {[%clk 0:02:58]}  f5 {[%clk 0:02:49]} 8. Nc3 {[%clk 0:02:55]}  a6 {[%clk 0:02:50]} 9. Bd3 {[%clk 0:02:34]}  b5 {[%clk 0:02:41]} 10. Qe2 {[%clk 0:02:27]}  Bb7 {[%clk 0:02:33]} 11. O-O-O {[%clk 0:02:23]}  b4 {[%clk 0:02:29]} 12. Na4 {[%clk 0:02:23]}  Nd7 {[%clk 0:02:10]} 13. Ne5 {[%clk 0:02:16]}  Nxe5 {[%clk 0:01:48]} 14. Qxe5 {[%clk 0:02:10]}  Bf6 {[%clk 0:01:43]} 15. Qa5 {[%clk 0:02:10]}  Qd5 {[%clk 0:00:52]} 16. Nc5 {[%clk 0:02:03]}  O-O {[%clk 0:00:46]} 17. Qxc7 {[%clk 0:02:00]}  Qxa2 {[%clk 0:00:13]} 18. Qg3+ {[%clk 0:01:51]}  Kh8 {[%clk 0:00:13]} 19. Nxb7 {[%clk 0:01:51]}  Qa1+ {[%clk 0:00:10]} 20. Kd2 {[%clk 0:01:50]}  Qxb2 {[%clk 0:00:11]} 21. Nd6 {[%clk 0:01:43]}  Qxd4 {[%clk 0:00:09]} 22. Nc4 {[%clk 0:01:38]}  Rg8 {[%clk 0:00:07]} 23. Qe3 {[%clk 0:01:37]}  Bg5 {[%clk 0:00:06]} 24. g3 {[%clk 0:01:31]}  Bxe3+ {[%clk 0:00:06]} 25. fxe3 {[%clk 0:01:32]}  Qc3+ {[%clk 0:00:06]} 26. Ke2 {[%clk 0:01:32]}  Rac8 {[%clk 0:00:05]} 27. Rb1 {[%clk 0:01:33]}  Rxc4 {[%clk 0:00:04]} 28. Bxc4 {[%clk 0:01:34]}  Qxc2+ {[%clk 0:00:04]} 29. Kf3 {[%clk 0:01:33]}  Qe4+ {[%clk 0:00:03]} 30. Kf2 {[%clk 0:01:33]}  Qxc4 {[%clk 0:00:03]} 31. Rhc1 {[%clk 0:01:34]}  Qe4 {[%clk 0:00:03]} 32. Rb3 {[%clk 0:01:34]}  a5 {[%clk 0:00:03]} 33. Ra1 {[%clk 0:01:35]}  a4 {[%clk 0:00:02]} 34. Rxa4 {[%clk 0:01:36]}  Qc2+ {[%clk 0:00:02]} 35. Kf3 {[%clk 0:01:35]}  Qxb3 {[%clk 0:00:03]} 36. Ra7 {[%clk 0:01:36]}  Qd5+ {[%clk 0:00:03]} 37. Kf2 {[%clk 0:01:34]}  b3 {[%clk 0:00:04]} 38. Re7 {[%clk 0:01:34]}  Qd2+ {[%clk 0:00:04]} 39. Kf3 {[%clk 0:01:34]}  b2 {[%clk 0:00:04]} 40. Rxf7 {[%clk 0:01:35]}  b1=Q {[%clk 0:00:04]} 41. Kf4 {[%clk 0:01:36]}  Qf1+ {[%clk 0:00:04]} 42. Ke5 {[%clk 0:01:36]}  Qxe3+ {[%clk 0:00:04]} 43. Kf6 {[%clk 0:01:37]}  Qa1+ {[%clk 0:00:02]} 44. Ke7 {[%clk 0:01:36]}  Qaa7+ {[%clk 0:00:02]} 45. Kf6 {[%clk 0:01:36]}  Qxf7+ {[%clk 0:00:02]} 46. Kxf7 {[%clk 0:01:37]}  e5 {[%clk 0:00:02]} 47. h3 {[%clk 0:01:38]}  f4 {[%clk 0:00:03]} 48. h4 {[%clk 0:01:39]}  f3 {[%clk 0:00:02]} 49. h5 {[%clk 0:01:40]}  f2 {[%clk 0:00:03]} 50. h6 {[%clk 0:01:41]}  f1=Q+ {[%clk 0:00:03]} 51. Ke6 {[%clk 0:01:40]}  Qb6+ {[%clk 0:00:03]} 52. Kd5 {[%clk 0:01:40]}  Qe2 {[%clk 0:00:04]} 53. g4 {[%clk 0:01:40]}  Qd3+ {[%clk 0:00:04]} 54. Kxe5 {[%clk 0:01:39]}  Qbd6# {[%clk 0:00:04]} 0-1


[Site "https://www.chess.com"]

[Event "Titled Tuesday Blitz January 10 Early 2023"]
[White "Parpiev, Isaak"]
[Black "Fathy, Elameir"]
[WhiteFideId "34281576"]
[BlackFideId "10600396"]
[WhiteElo "2167"]
[BlackElo "2300"]
[Result "1-0"]
[Round "02"]
[TimeControl "180+2"]
[Date "2023.01.10"]
[WhiteClock "0:00:12"]
[BlackClock "0:00:02"]

1. Nf3 {[%clk 0:03:00]}  d5 {[%clk 0:02:59]} 2. g3 {[%clk 0:03:00]}  Nf6 {[%clk 0:02:50]} 3. Bg2 {[%clk 0:03:00]}  Bg4 {[%clk 0:02:44]} 4. O-O {[%clk 0:03:00]}  e6 {[%clk 0:02:44]} 5. Ne5 {[%clk 0:02:59]}  Bf5 {[%clk 0:02:39]} 6. c4 {[%clk 0:02:58]}  c6 {[%clk 0:02:39]} 7. d3 {[%clk 0:02:56]}  Nbd7 {[%clk 0:02:21]} 8. Nxd7 {[%clk 0:02:47]}  Qxd7 {[%clk 0:02:17]} 9. Nd2 {[%clk 0:02:40]}  Bd6 {[%clk 0:01:38]} 10. b3 {[%clk 0:02:40]}  O-O {[%clk 0:01:36]} 11. Bb2 {[%clk 0:02:40]}  Be7 {[%clk 0:01:28]} 12. e4 {[%clk 0:02:37]}  dxe4 {[%clk 0:01:20]} 13. dxe4 {[%clk 0:02:37]}  Bg6 {[%clk 0:01:20]} 14. Qe2 {[%clk 0:02:35]}  Rfd8 {[%clk 0:01:15]} 15. Rad1 {[%clk 0:02:34]}  Qc7 {[%clk 0:01:11]} 16. h3 {[%clk 0:01:52]}  e5 {[%clk 0:00:46]} 17. Rfe1 {[%clk 0:01:38]}  Bc5 {[%clk 0:00:42]} 18. Nf1 {[%clk 0:01:36]}  Nd7 {[%clk 0:00:36]} 19. Ne3 {[%clk 0:01:32]}  a5 {[%clk 0:00:34]} 20. a3 {[%clk 0:01:23]}  Nf8 {[%clk 0:00:31]} 21. h4 {[%clk 0:01:21]}  h6 {[%clk 0:00:27]} 22. h5 {[%clk 0:01:21]}  Bh7 {[%clk 0:00:28]} 23. Nf5 {[%clk 0:01:19]}  Ne6 {[%clk 0:00:27]} 24. Qg4 {[%clk 0:01:16]}  Kh8 {[%clk 0:00:16]} 25. Qh4 {[%clk 0:00:56]}  f6 {[%clk 0:00:15]} 26. Qg4 {[%clk 0:00:53]}  Bxf5 {[%clk 0:00:15]} 27. Qxf5 {[%clk 0:00:52]}  Nd4 {[%clk 0:00:15]} 28. Bxd4 {[%clk 0:00:51]}  Rxd4 {[%clk 0:00:15]} 29. Rxd4 {[%clk 0:00:50]}  Bxd4 {[%clk 0:00:16]} 30. Qf3 {[%clk 0:00:49]}  a4 {[%clk 0:00:15]} 31. b4 {[%clk 0:00:48]}  Rd8 {[%clk 0:00:16]} 32. Bh3 {[%clk 0:00:48]}  Kg8 {[%clk 0:00:09]} 33. Rd1 {[%clk 0:00:47]}  b5 {[%clk 0:00:07]} 34. c5 {[%clk 0:00:46]}  Qe7 {[%clk 0:00:07]} 35. Kg2 {[%clk 0:00:45]}  Bb2 {[%clk 0:00:05]} 36. Rxd8+ {[%clk 0:00:41]}  Qxd8 {[%clk 0:00:06]} 37. Be6+ {[%clk 0:00:39]}  Kf8 {[%clk 0:00:06]} 38. Ba2 {[%clk 0:00:21]}  Qd4 {[%clk 0:00:04]} 39. Qf5 {[%clk 0:00:18]}  Bxa3 {[%clk 0:00:02]} 40. Qc8+ {[%clk 0:00:17]}  Ke7 {[%clk 0:00:02]} 41. Qe6+ {[%clk 0:00:15]}  Kd8 {[%clk 0:00:02]} 42. Qxc6 {[%clk 0:00:16]}  Bxb4 {[%clk 0:00:01]} 43. Bd5 {[%clk 0:00:17]}  Bxc5 {[%clk 0:00:01]} 44. Qxb5 {[%clk 0:00:13]}  Qxf2+ {[%clk 0:00:02]} 45. Kh3 {[%clk 0:00:13]}  Qf1+ {[%clk 0:00:02]} 46. Qxf1 {[%clk 0:00:12]} 1-0


[Site "https://www.chess.com"]

[Event "Titled Tuesday Blitz January 10 Early 2023"]
[White "Martynov, Pavel"]
[Black "Hoffmann, Asa"]
[WhiteFideId "4101260"]
[BlackFideId "2001470"]
[WhiteElo "2414"]
[BlackElo "2185"]
[Result "1-0"]
[Round "02"]
[TimeControl "180+2"]
[Date "2023.01.10"]
[WhiteClock "0:00:13"]
[BlackClock "0:00:16"]

1. e4 {[%clk 0:03:00]}  d6 {[%clk 0:02:55]} 2. d4 {[%clk 0:03:00]}  Nf6 {[%clk 0:02:54]} 3. Nc3 {[%clk 0:03:00]}  c6 {[%clk 0:02:54]} 4. g3 {[%clk 0:03:00]}  Nbd7 {[%clk 0:02:52]} 5. Bg2 {[%clk 0:03:00]}  e5 {[%clk 0:02:52]} 6. Nge2 {[%clk 0:03:00]}  Be7 {[%clk 0:02:51]} 7. O-O {[%clk 0:03:00]}  b5 {[%clk 0:02:51]} 8. a3 {[%clk 0:03:00]}  a6 {[%clk 0:02:51]} 9. h3 {[%clk 0:03:00]}  Bb7 {[%clk 0:02:50]} 10. g4 {[%clk 0:03:00]}  c5 {[%clk 0:02:49]} 11. dxe5 {[%clk 0:02:49]}  dxe5 {[%clk 0:02:46]} 12. Ng3 {[%clk 0:02:49]}  Nb6 {[%clk 0:02:39]} 13. Qe2 {[%clk 0:02:48]}  g6 {[%clk 0:02:30]} 14. Bh6 {[%clk 0:02:42]}  Qc7 {[%clk 0:02:25]} 15. Rad1 {[%clk 0:02:37]}  Rd8 {[%clk 0:02:14]} 16. f4 {[%clk 0:02:34]}  Bd6 {[%clk 0:02:05]} 17. Bg7 {[%clk 0:02:27]}  Ke7 {[%clk 0:01:40]} 18. Bxf6+ {[%clk 0:01:16]}  Kxf6 {[%clk 0:01:39]} 19. fxe5+ {[%clk 0:01:17]}  Kxe5 {[%clk 0:01:38]} 20. Qf3 {[%clk 0:01:10]}  Ke6 {[%clk 0:01:27]} 21. Qf6+ {[%clk 0:01:05]}  Kd7 {[%clk 0:01:26]} 22. e5 {[%clk 0:01:04]}  Bxg2 {[%clk 0:01:16]} 23. Rxd6+ {[%clk 0:01:00]}  Kc8 {[%clk 0:01:15]} 24. Kxg2 {[%clk 0:01:00]}  Rxd6 {[%clk 0:01:12]} 25. exd6 {[%clk 0:00:51]}  Qc6+ {[%clk 0:01:11]} 26. Kh2 {[%clk 0:00:50]}  Rd8 {[%clk 0:01:08]} 27. Nce4 {[%clk 0:00:49]}  Nc4 {[%clk 0:01:06]} 28. Rd1 {[%clk 0:00:38]}  Ne3 {[%clk 0:00:59]} 29. Rd3 {[%clk 0:00:36]}  Nc4 {[%clk 0:00:57]} 30. b3 {[%clk 0:00:34]}  Nxa3 {[%clk 0:00:56]} 31. Qxf7 {[%clk 0:00:33]}  Nxc2 {[%clk 0:00:54]} 32. Rc3 {[%clk 0:00:30]}  Rd7 {[%clk 0:00:45]} 33. Qg8+ {[%clk 0:00:26]}  Kb7 {[%clk 0:00:42]} 34. Rxc5 {[%clk 0:00:22]}  Rxd6 {[%clk 0:00:26]} 35. Rxc6 {[%clk 0:00:20]}  Rxc6 {[%clk 0:00:26]} 36. Qd5 {[%clk 0:00:17]}  Nb4 {[%clk 0:00:24]} 37. Qd7+ {[%clk 0:00:17]}  Rc7 {[%clk 0:00:23]} 38. Qd4 {[%clk 0:00:15]}  Nc6 {[%clk 0:00:22]} 39. Qc5 {[%clk 0:00:14]}  Rd7 {[%clk 0:00:20]} 40. Nd6+ {[%clk 0:00:14]}  Kc7 {[%clk 0:00:19]} 41. Nge4 {[%clk 0:00:15]}  Re7 {[%clk 0:00:17]} 42. Qd5 {[%clk 0:00:12]}  Re5 {[%clk 0:00:16]} 43. Qf7+ {[%clk 0:00:12]}  Kb6 {[%clk 0:00:16]} 44. Qb7+ {[%clk 0:00:12]}  Ka5 {[%clk 0:00:16]} 45. Qxc6 {[%clk 0:00:13]} 1-0


[Site "https://www.chess.com"]

[Event "Titled Tuesday Blitz January 10 Early 2023"]
[White "Yaniuk, Volodymyr"]
[Black "Bychkov, Vladimir"]
[WhiteFideId "14133083"]
[BlackFideId "24151513"]
[WhiteElo "2223"]
[BlackElo "2225"]
[Result "0-1"]
[Round "02"]
[TimeControl "180+2"]
[Date "2023.01.10"]
[WhiteClock "0:01:20"]
[BlackClock "0:01:51"]

1. d4 {[%clk 0:03:00]}  Nf6 {[%clk 0:02:59]} 2. c4 {[%clk 0:03:00]}  g6 {[%clk 0:03:00]} 3. Nc3 {[%clk 0:03:00]}  Bg7 {[%clk 0:03:00]} 4. e4 {[%clk 0:02:59]}  d6 {[%clk 0:03:01]} 5. Nf3 {[%clk 0:03:00]}  O-O {[%clk 0:03:01]} 6. h3 {[%clk 0:03:01]}  e5 {[%clk 0:03:01]} 7. d5 {[%clk 0:03:01]}  a5 {[%clk 0:03:01]} 8. Be3 {[%clk 0:03:00]}  Na6 {[%clk 0:03:02]} 9. g4 {[%clk 0:03:00]}  Nc5 {[%clk 0:03:02]} 10. Nd2 {[%clk 0:03:00]}  c6 {[%clk 0:03:00]} 11. Be2 {[%clk 0:03:00]}  cxd5 {[%clk 0:03:01]} 12. cxd5 {[%clk 0:03:00]}  Bd7 {[%clk 0:02:56]} 13. g5 {[%clk 0:02:59]}  Ne8 {[%clk 0:02:55]} 14. h4 {[%clk 0:02:50]}  f5 {[%clk 0:02:53]} 15. gxf6 {[%clk 0:02:45]}  Nxf6 {[%clk 0:02:47]} 16. a3 {[%clk 0:02:36]}  b5 {[%clk 0:02:45]} 17. b4 {[%clk 0:02:34]}  axb4 {[%clk 0:02:37]} 18. axb4 {[%clk 0:02:35]}  Na4 {[%clk 0:02:37]} 19. Nxb5 {[%clk 0:02:29]}  Bxb5 {[%clk 0:02:30]} 20. Bxb5 {[%clk 0:02:28]}  Nc3 {[%clk 0:02:31]} 21. Rxa8 {[%clk 0:02:28]}  Qxa8 {[%clk 0:02:31]} 22. Bc6 {[%clk 0:02:21]}  Nxd1 {[%clk 0:02:31]} 23. Bxa8 {[%clk 0:02:20]}  Nxe3 {[%clk 0:02:31]} 24. Bc6 {[%clk 0:02:14]}  Nc2+ {[%clk 0:02:31]} 25. Ke2 {[%clk 0:02:14]}  Nd4+ {[%clk 0:02:32]} 26. Kd3 {[%clk 0:02:13]}  Ng4 {[%clk 0:02:31]} 27. Ra1 {[%clk 0:02:10]}  Bh6 {[%clk 0:02:30]} 28. f3 {[%clk 0:02:01]}  Nf2+ {[%clk 0:02:26]} 29. Kc3 {[%clk 0:01:56]}  Bxd2+ {[%clk 0:02:22]} 30. Kxd2 {[%clk 0:01:56]}  Rxf3 {[%clk 0:02:22]} 31. Ra8+ {[%clk 0:01:55]}  Kg7 {[%clk 0:02:22]} 32. b5 {[%clk 0:01:55]}  Nxe4+ {[%clk 0:02:22]} 33. Kc1 {[%clk 0:01:54]}  Nc3 {[%clk 0:02:17]} 34. b6 {[%clk 0:01:48]}  Rf2 {[%clk 0:02:17]} 35. Ba4 {[%clk 0:01:42]}  Nxa4 {[%clk 0:01:59]} 36. Rxa4 {[%clk 0:01:43]}  Rc2+ {[%clk 0:01:59]} 37. Kd1 {[%clk 0:01:39]}  Rb2 {[%clk 0:01:58]} 38. Ra7+ {[%clk 0:01:37]}  Kh6 {[%clk 0:01:58]} 39. Rb7 {[%clk 0:01:38]}  e4 {[%clk 0:01:55]} 40. Re7 {[%clk 0:01:37]}  Rxb6 {[%clk 0:01:50]} 41. Rxe4 {[%clk 0:01:36]}  Nf5 {[%clk 0:01:51]} 42. Ke1 {[%clk 0:01:23]}  Rb5 {[%clk 0:01:51]} 43. Kf2 {[%clk 0:01:23]}  Rxd5 {[%clk 0:01:51]} 44. Kf3 {[%clk 0:01:21]}  Rd3+ {[%clk 0:01:51]} 45. Kf4 {[%clk 0:01:20]}  Rd4 {[%clk 0:01:51]} 0-1


[Site "https://www.chess.com"]

[Event "Titled Tuesday Blitz January 10 Early 2023"]
[White "Matveeva, Olga"]
[Black "Ezat, Mohamed"]
[WhiteFideId "24107018"]
[BlackFideId "10600906"]
[WhiteElo "2128"]
[BlackElo "2402"]
[Result "1-0"]
[Round "02"]
[TimeControl "180+2"]
[Date "2023.01.10"]
[WhiteClock "0:00:07"]
[BlackClock "0:00:01"]

1. d4 {[%clk 0:03:00]}  Nf6 {[%clk 0:02:55]} 2. c4 {[%clk 0:03:00]}  e6 {[%clk 0:02:52]} 3. g3 {[%clk 0:03:00]}  d5 {[%clk 0:02:50]} 4. Nf3 {[%clk 0:03:00]}  c5 {[%clk 0:02:49]} 5. cxd5 {[%clk 0:02:59]}  exd5 {[%clk 0:02:49]} 6. Bg2 {[%clk 0:02:59]}  Nc6 {[%clk 0:02:49]} 7. O-O {[%clk 0:02:59]}  Be7 {[%clk 0:02:50]} 8. dxc5 {[%clk 0:02:59]}  O-O {[%clk 0:02:47]} 9. Nc3 {[%clk 0:02:57]}  h6 {[%clk 0:02:46]} 10. b3 {[%clk 0:02:51]}  Bxc5 {[%clk 0:02:45]} 11. Bb2 {[%clk 0:02:51]}  a6 {[%clk 0:02:44]} 12. Rc1 {[%clk 0:02:50]}  Ba7 {[%clk 0:02:44]} 13. Na4 {[%clk 0:02:48]}  Re8 {[%clk 0:02:43]} 14. e3 {[%clk 0:02:42]}  Bg4 {[%clk 0:02:41]} 15. h3 {[%clk 0:02:31]}  Bh5 {[%clk 0:02:40]} 16. Nc5 {[%clk 0:02:20]}  Qe7 {[%clk 0:01:54]} 17. Nxb7 {[%clk 0:02:02]}  Qxb7 {[%clk 0:01:51]} 18. Bxf6 {[%clk 0:02:02]}  gxf6 {[%clk 0:01:51]} 19. Qxd5 {[%clk 0:02:01]}  Bg6 {[%clk 0:00:27]} 20. Qxc6 {[%clk 0:01:54]}  Qe7 {[%clk 0:00:23]} 21. Nh4 {[%clk 0:01:48]}  Rac8 {[%clk 0:00:16]} 22. Qf3 {[%clk 0:01:36]}  Bd3 {[%clk 0:00:13]} 23. Rfd1 {[%clk 0:01:33]}  Rxc1 {[%clk 0:00:13]} 24. Rxc1 {[%clk 0:01:32]}  Qa3 {[%clk 0:00:14]} 25. Rc7 {[%clk 0:01:18]}  Bb6 {[%clk 0:00:11]} 26. Qc6 {[%clk 0:01:01]}  Bxc7 {[%clk 0:00:08]} 27. Qxe8+ {[%clk 0:01:00]}  Kg7 {[%clk 0:00:09]} 28. Qd7 {[%clk 0:00:57]}  Qd6 {[%clk 0:00:08]} 29. Qa4 {[%clk 0:00:40]}  Kf8 {[%clk 0:00:08]} 30. Qg4 {[%clk 0:00:36]}  Bb5 {[%clk 0:00:07]} 31. Kh2 {[%clk 0:00:35]}  Bd7 {[%clk 0:00:06]} 32. Qh5 {[%clk 0:00:34]}  Kg7 {[%clk 0:00:06]} 33. Nf5+ {[%clk 0:00:32]}  Bxf5 {[%clk 0:00:06]} 34. Qxf5 {[%clk 0:00:33]}  Qd2 {[%clk 0:00:06]} 35. a4 {[%clk 0:00:27]}  Be5 {[%clk 0:00:06]} 36. Be4 {[%clk 0:00:26]}  Kf8 {[%clk 0:00:06]} 37. Kg2 {[%clk 0:00:20]}  Qe1 {[%clk 0:00:05]} 38. Qc8+ {[%clk 0:00:19]}  Kg7 {[%clk 0:00:05]} 39. Qxa6 {[%clk 0:00:19]}  h5 {[%clk 0:00:05]} 40. Qc8 {[%clk 0:00:16]}  Qd1 {[%clk 0:00:03]} 41. Qf5 {[%clk 0:00:14]}  Kf8 {[%clk 0:00:02]} 42. a5 {[%clk 0:00:09]}  Qxb3 {[%clk 0:00:02]} 43. a6 {[%clk 0:00:10]}  Qb6 {[%clk 0:00:03]} 44. Qc8+ {[%clk 0:00:08]}  Kg7 {[%clk 0:00:02]} 45. Bb7 {[%clk 0:00:07]}  Qa5 {[%clk 0:00:01]} 46. Qf5 {[%clk 0:00:07]} 1-0


[Site "https://www.chess.com"]

[Event "Titled Tuesday Blitz January 10 Early 2023"]
[White "Bazarov, Konstantin"]
[Black "Bove, Alessandro"]
[WhiteFideId "4137000"]
[BlackFideId "814121"]
[WhiteElo "2235"]
[BlackElo "2311"]
[Result "1-0"]
[Round "02"]
[TimeControl "180+2"]
[Date "2023.01.10"]
[WhiteClock "0:00:09"]
[BlackClock "0:00:11"]

1. c4 {[%clk 0:03:00]}  Nf6 {[%clk 0:02:57]} 2. Nc3 {[%clk 0:02:58]}  g6 {[%clk 0:02:50]} 3. e4 {[%clk 0:02:57]}  d6 {[%clk 0:02:50]} 4. d4 {[%clk 0:02:57]}  Bg7 {[%clk 0:02:50]} 5. Nge2 {[%clk 0:02:57]}  O-O {[%clk 0:02:50]} 6. Ng3 {[%clk 0:02:56]}  e5 {[%clk 0:02:49]} 7. d5 {[%clk 0:02:56]}  Nbd7 {[%clk 0:02:49]} 8. h4 {[%clk 0:02:56]}  h5 {[%clk 0:02:48]} 9. Bg5 {[%clk 0:02:56]}  Kh7 {[%clk 0:02:40]} 10. Be2 {[%clk 0:02:54]}  Qe8 {[%clk 0:02:39]} 11. Nb5 {[%clk 0:02:53]}  Qd8 {[%clk 0:02:36]} 12. Bxh5 {[%clk 0:02:51]}  gxh5 {[%clk 0:02:30]} 13. Nxh5 {[%clk 0:02:51]}  a6 {[%clk 0:02:27]} 14. Nc3 {[%clk 0:02:46]}  Qe8 {[%clk 0:02:22]} 15. Nxg7 {[%clk 0:02:39]}  Kxg7 {[%clk 0:02:21]} 16. Qf3 {[%clk 0:02:35]}  Rh8 {[%clk 0:02:17]} 17. h5 {[%clk 0:02:26]}  Nh7 {[%clk 0:02:08]} 18. Be3 {[%clk 0:02:19]}  f6 {[%clk 0:02:05]} 19. O-O-O {[%clk 0:01:58]}  Kf7 {[%clk 0:01:59]} 20. g4 {[%clk 0:01:54]}  Rg8 {[%clk 0:01:54]} 21. Rdg1 {[%clk 0:01:51]}  Ng5 {[%clk 0:01:50]} 22. Qe2 {[%clk 0:01:45]}  Nf8 {[%clk 0:01:48]} 23. f4 {[%clk 0:01:39]}  exf4 {[%clk 0:01:45]} 24. Bxf4 {[%clk 0:01:39]}  Nfh7 {[%clk 0:01:43]} 25. Rf1 {[%clk 0:01:37]}  Bd7 {[%clk 0:01:33]} 26. Rhg1 {[%clk 0:01:30]}  b5 {[%clk 0:01:32]} 27. Qe3 {[%clk 0:01:29]}  b4 {[%clk 0:01:27]} 28. Bxg5 {[%clk 0:01:26]}  Nxg5 {[%clk 0:01:23]} 29. Ne2 {[%clk 0:00:38]}  Qxe4 {[%clk 0:01:11]} 30. Qf2 {[%clk 0:00:38]}  Qe5 {[%clk 0:00:53]} 31. Nf4 {[%clk 0:00:33]}  Rae8 {[%clk 0:00:45]} 32. Re1 {[%clk 0:00:29]}  Ne4 {[%clk 0:00:45]} 33. Qf3 {[%clk 0:00:27]}  Qd4 {[%clk 0:00:30]} 34. Re2 {[%clk 0:00:19]}  Qxc4+ {[%clk 0:00:29]} 35. Kb1 {[%clk 0:00:18]}  Re5 {[%clk 0:00:26]} 36. Rc2 {[%clk 0:00:17]}  Qd4 {[%clk 0:00:23]} 37. Rd1 {[%clk 0:00:16]}  Qb6 {[%clk 0:00:21]} 38. Ng6 {[%clk 0:00:17]}  Rb8 {[%clk 0:00:19]} 39. Nxe5+ {[%clk 0:00:16]}  dxe5 {[%clk 0:00:19]} 40. Qxe4 {[%clk 0:00:16]}  a5 {[%clk 0:00:16]} 41. Qg6+ {[%clk 0:00:15]}  Ke7 {[%clk 0:00:16]} 42. d6+ {[%clk 0:00:15]}  cxd6 {[%clk 0:00:16]} 43. Rf1 {[%clk 0:00:14]}  d5 {[%clk 0:00:16]} 44. Rcf2 {[%clk 0:00:14]}  Rf8 {[%clk 0:00:15]} 45. g5 {[%clk 0:00:12]}  Qe6 {[%clk 0:00:12]} 46. Rxf6 {[%clk 0:00:10]}  Rxf6 {[%clk 0:00:13]} 47. gxf6+ {[%clk 0:00:11]}  Kd6 {[%clk 0:00:11]} 48. f7 {[%clk 0:00:09]}  Qxg6+ {[%clk 0:00:11]} 49. hxg6 {[%clk 0:00:09]} 1-0


[Site "https://www.chess.com"]

[Event "Titled Tuesday Blitz January 10 Early 2023"]
[White "Tania, Sachdev"]
[Black "Kamalidenova, Meruert"]
[WhiteFideId "5007844"]
[BlackFideId "13712802"]
[WhiteElo "2389"]
[BlackElo "2350"]
[Result "1-0"]
[Round "02"]
[TimeControl "180+2"]
[Date "2023.01.10"]
[WhiteClock "0:00:10"]
[BlackClock "0:00:02"]

1. d4 {[%clk 0:03:00]}  Nf6 {[%clk 0:02:57]} 2. c4 {[%clk 0:03:01]}  e6 {[%clk 0:02:57]} 3. Nf3 {[%clk 0:03:00]}  b6 {[%clk 0:02:57]} 4. a3 {[%clk 0:03:00]}  Bb7 {[%clk 0:02:50]} 5. Nc3 {[%clk 0:03:00]}  d5 {[%clk 0:02:50]} 6. cxd5 {[%clk 0:03:01]}  Nxd5 {[%clk 0:02:47]} 7. Qc2 {[%clk 0:03:01]}  c5 {[%clk 0:02:45]} 8. e4 {[%clk 0:03:01]}  Nxc3 {[%clk 0:02:43]} 9. bxc3 {[%clk 0:03:01]}  Nc6 {[%clk 0:02:41]} 10. Bb2 {[%clk 0:02:53]}  Be7 {[%clk 0:02:40]} 11. Bd3 {[%clk 0:02:50]}  O-O {[%clk 0:02:38]} 12. O-O {[%clk 0:02:50]}  Rc8 {[%clk 0:02:35]} 13. Qe2 {[%clk 0:02:49]}  Bf6 {[%clk 0:02:27]} 14. e5 {[%clk 0:02:48]}  Be7 {[%clk 0:02:27]} 15. Rad1 {[%clk 0:02:47]}  cxd4 {[%clk 0:02:24]} 16. cxd4 {[%clk 0:02:47]}  Na5 {[%clk 0:02:22]} 17. Nd2 {[%clk 0:02:38]}  Re8 {[%clk 0:02:18]} 18. Ne4 {[%clk 0:02:18]}  Bxe4 {[%clk 0:02:12]} 19. Qxe4 {[%clk 0:02:17]}  g6 {[%clk 0:02:12]} 20. Ba6 {[%clk 0:02:11]}  Rc7 {[%clk 0:02:10]} 21. d5 {[%clk 0:02:09]}  Qa8 {[%clk 0:02:01]} 22. Qf4 {[%clk 0:01:45]}  exd5 {[%clk 0:01:56]} 23. e6 {[%clk 0:01:45]}  Bd8 {[%clk 0:01:56]} 24. Be5 {[%clk 0:01:21]}  g5 {[%clk 0:01:41]} 25. Qg3 {[%clk 0:01:09]}  Rc5 {[%clk 0:01:25]} 26. exf7+ {[%clk 0:01:05]}  Kxf7 {[%clk 0:01:25]} 27. Rfe1 {[%clk 0:00:59]}  Nc4 {[%clk 0:01:15]} 28. Bd4 {[%clk 0:00:51]}  Bf6 {[%clk 0:00:20]} 29. Bxc5 {[%clk 0:00:41]}  bxc5 {[%clk 0:00:21]} 30. Bxc4 {[%clk 0:00:41]}  dxc4 {[%clk 0:00:20]} 31. Qc7+ {[%clk 0:00:40]}  Kg6 {[%clk 0:00:20]} 32. Qxc5 {[%clk 0:00:37]}  Qd8 {[%clk 0:00:16]} 33. g3 {[%clk 0:00:29]}  Rxe1+ {[%clk 0:00:16]} 34. Rxe1 {[%clk 0:00:29]}  c3 {[%clk 0:00:16]} 35. Qc4 {[%clk 0:00:29]}  Qd2 {[%clk 0:00:16]} 36. Re2 {[%clk 0:00:25]}  Qd1+ {[%clk 0:00:16]} 37. Kg2 {[%clk 0:00:25]}  Qa1 {[%clk 0:00:16]} 38. a4 {[%clk 0:00:23]}  Qa3 {[%clk 0:00:15]} 39. Qg8+ {[%clk 0:00:22]}  Kh6 {[%clk 0:00:14]} 40. h4 {[%clk 0:00:21]}  gxh4 {[%clk 0:00:14]} 41. Qe6 {[%clk 0:00:18]}  Qf8 {[%clk 0:00:13]} 42. Re4 {[%clk 0:00:17]}  hxg3 {[%clk 0:00:05]} 43. fxg3 {[%clk 0:00:14]}  Kg7 {[%clk 0:00:04]} 44. Rg4+ {[%clk 0:00:13]}  Kh8 {[%clk 0:00:04]} 45. Rf4 {[%clk 0:00:13]}  Qa8+ {[%clk 0:00:04]} 46. Kh3 {[%clk 0:00:14]}  Bg7 {[%clk 0:00:04]} 47. Qf5 {[%clk 0:00:13]}  Qe8 {[%clk 0:00:04]} 48. Rc4 {[%clk 0:00:11]}  Qe1 {[%clk 0:00:02]} 49. Rc8+ {[%clk 0:00:10]} 1-0


[Site "https://www.chess.com"]